{"text_format":"3","workbook":"xlsx","n_sheets":4,"sheets":["Einkaufsliste","Budgetaufstellung","Aufgabenliste","Freigabeliste"],"not_rendered":{"charts":2,"images":2,"defined_names":12},"read":"whole","date_system":"1900"}

{"sheet":"Einkaufsliste","index":0,"n_rows":25,"n_cols":8,"rows_kept":25,"merged":[[2,1,2,7],[3,1,3,2],[4,4,6,7]]}
[null,"Neues Schuljahr","Planer"]
[]
[null,"Verfolgen Sie Ihren Einkaufstatus anhand der in der Budgetaufstellung eingetragenen Beträge für die Budgetkategorie nach."]
[null,"Budgetzusammenfassung",null,null,{"$f":"\"Kaufstatus (\"&COUNTIFS(Checkliste[Gekauft], \">0\")&\" von \"&COUNTIFS(Checkliste[Kaufen], \">0\")&\")\"","v":"Kaufstatus (1 von 6)"}]
[null,"Budget",{"v":1500,"d":"1,500.00 €"},null,{"$f":"IFERROR(COUNTIFS(Checkliste[Kaufen],\">0\",Checkliste[Gekauft],\">0\")/SummeZuKaufenderArtikel,0)","v":{"v":0.16666666666666666,"d":"17%"}}]
[null,"Summe der Einkaufsliste",{"$f":"IFERROR(SUM(ChecklistenSumme), \"\")","v":{"v":365,"d":"365.00 €"}}]
[null,"Verbleibendes Barguthaben",{"$f":"IFERROR(C5-C6, \"\")","v":{"v":1135,"d":"1,135.00 €"}}]
[null,"Einkaufsliste"]
[null,"Artikel","Kategorie","Menge","Kaufen","Kosten","Gekauft","Gesamtkosten"]
[null,"Mathe","Textbücher",1,1,{"v":55,"d":"55.00 €"},1,{"$f":"IFERROR(Checkliste[Menge]*Checkliste[Kosten], \"\")","v":{"v":55,"d":"55.00 €"}}]
[null,"Englisch","Textbücher",1,1,null,null,{"$f":"IFERROR(Checkliste[Menge]*Checkliste[Kosten], \"\")","v":0}]
[null,"Rucksack","Schulmaterialien",1,null,{"v":30,"d":"30.00 €"},null,{"$f":"IFERROR(Checkliste[Menge]*Checkliste[Kosten], \"\")","v":{"v":30,"d":"30.00 €"}}]
[null,"Taschenrechner","Schulmaterialien",1,{"$nulls":3},{"$f":"IFERROR(Checkliste[Menge]*Checkliste[Kosten], \"\")","v":0}]
[null,"Textmarker","Schulmaterialien",3,{"$nulls":3},{"$f":"IFERROR(Checkliste[Menge]*Checkliste[Kosten], \"\")","v":0}]
[null,"Uniform","Bekleidung",2,1,{"v":100,"d":"100.00 €"},null,{"$f":"IFERROR(Checkliste[Menge]*Checkliste[Kosten], \"\")","v":{"v":200,"d":"200.00 €"}}]
[null,"Hemd, knöpfbar","Bekleidung",4,{"$nulls":3},{"$f":"IFERROR(Checkliste[Menge]*Checkliste[Kosten], \"\")","v":0}]
[null,"Hemd, T-Shirts","Bekleidung",5,{"$nulls":3},{"$f":"IFERROR(Checkliste[Menge]*Checkliste[Kosten], \"\")","v":0}]
[null,"Shorts","Bekleidung",2,{"$nulls":3},{"$f":"IFERROR(Checkliste[Menge]*Checkliste[Kosten], \"\")","v":0}]
[null,"Turnschuhe","Bekleidung",2,1,null,null,{"$f":"IFERROR(Checkliste[Menge]*Checkliste[Kosten], \"\")","v":0}]
[null,"Socken","Bekleidung",10,{"$nulls":3},{"$f":"IFERROR(Checkliste[Menge]*Checkliste[Kosten], \"\")","v":0}]
[null,"Übergangsjacke","Bekleidung",1,1,{"v":80,"d":"80.00 €"},null,{"$f":"IFERROR(Checkliste[Menge]*Checkliste[Kosten], \"\")","v":{"v":80,"d":"80.00 €"}}]
[null,"Pullover","Bekleidung",1,{"$nulls":3},{"$f":"IFERROR(Checkliste[Menge]*Checkliste[Kosten], \"\")","v":0}]
[null,"Sweatshirts","Bekleidung",1,{"$nulls":3},{"$f":"IFERROR(Checkliste[Menge]*Checkliste[Kosten], \"\")","v":0}]
[null,"Unterwäsche","Bekleidung",10,{"$nulls":3},{"$f":"IFERROR(Checkliste[Menge]*Checkliste[Kosten], \"\")","v":0}]
[null,"Winterjacke","Bekleidung",1,1,null,null,{"$f":"IFERROR(Checkliste[Menge]*Checkliste[Kosten], \"\")","v":0}]

{"sheet":"Budgetaufstellung","index":1,"n_rows":6,"n_cols":3,"rows_kept":6}
[null,"Budgetaufstellung"]
[null,"Fügen Sie Kategorien und Budgetbeträge für die Nachverfolgung in Ihrer Einkaufsliste hinzu."]
[null,"Kategorie","Gesamtkosten"]
[null,"Bekleidung",{"$f":"IFERROR(SUMIFS(Checkliste[Gesamtkosten],Checkliste[Kategorie],Kategorie[Kategorie]), \"\")","v":{"v":280,"d":"280.00 €"}}]
[null,"Schulmaterialien",{"$f":"IFERROR(SUMIFS(Checkliste[Gesamtkosten],Checkliste[Kategorie],Kategorie[Kategorie]), \"\")","v":{"v":30,"d":"30.00 €"}}]
[null,"Textbücher",{"$f":"IFERROR(SUMIFS(Checkliste[Gesamtkosten],Checkliste[Kategorie],Kategorie[Kategorie]), \"\")","v":{"v":55,"d":"55.00 €"}}]

{"sheet":"Aufgabenliste","index":2,"n_rows":22,"n_cols":3,"rows_kept":22}
[null,"Aufgabenliste"]
[null,"Halten Sie alle Aktivitäten nach, die Sie vor Schulbeginn erledigen müssen."]
[null,"Fertig","Aufgabe"]
[null,"x","Alle Anmeldeformulare ausfüllen"]
[null,null,"Gegebenenfalls Termin für schulärztliche Untersuchung und Sehtest vereinbaren"]
[null,null,"Alle vorgeschriebenen Impfungen überprüfen"]
[null,null,"Vermerk mit Dosieranweisungen für alle benötigten Medikamente bei Arzt anfordern"]
[null,null,"Kleiderordnung der Schule überprüfen"]
[null,null,"Liste der Schulmaterialien anfordern"]
[null,null,"Lehrer treffen"]
[null,null,"Bevorzugte Kommunikationsmethode (Telefon, E-Mail, schriftliche Notiz) des Lehrers ermitteln"]
[null,null,"Tour durch die Schule mit dem Kind absolvieren"]
[null,null,"Das Kind beim Merken Ihrer privaten und geschäftlichen Telefonnummer und der Postanschrift zu Hause unterstützen."]
[null,null,"Transport arrangieren, sicheren Treffpunkt festlegen und Routine einüben"]
[null,null,"Wenn der Schulweg zu Fuß zurückgelegt wird, üben Sie die Route hin zur und zurück von der Schule mehrmals mit Ihrem Kind."]
[null,null,"Wenn das Kind per Carpool transportiert wird, stellen Sie Ihr Kind allen Fahrern des Carpools vor."]
[null,null,"Im Fall des Transports per Bus ermitteln Sie die Bushaltestellen und die Abfahrtszeiten."]
[null,null,"Kinderbetreuung/Betreuung nach der Schule organisieren"]
[null,null,"Einen Speiseplan für Frühstück, Pausenbrot, mitgenommenes Mittagessen und Imbiss nach der Schule planen"]
[null,null,"Ort und Zeitplan für Hausaufgaben festlegen"]
[null,null,"Zu-Bett-geh-Routine mindestens zwei Wochen vor Schulbeginn etablieren"]
[null,null,"Einen Kalender mit allen Schulterminen und -aktivitäten vorbereiten"]

{"sheet":"Freigabeliste","index":3,"n_rows":4,"n_cols":5,"rows_kept":4}
[null,"Freigabeliste",null,null,"Teilen Sie diese Liste mit anderen, damit sie einen Beitrag leisten können. Wählen Sie in der oberen rechten Ecke \"Freigeben\" aus, oder drücken Sie ALT und dann YU. Speichern Sie die Datei auf OneDrive, und senden Sie den Link an Ihre Freunde."]
[null,"Name","E-Mail","Geteilt?"]
[null,"Person 1","jemand@email.com","Ja"]
[null,"Person 2","jemand@email.com","Nein"]